lending/lending_fUSD_20240703
["ID","MTS","AMOUNT","RATE_DAILY","PERIOD"]
[330969084,1719975039976,-1049.28996089,0.00014671,2]
[330969085,1719975039985,-5543.0,0.00014751,2]
[330969086,1719975039995,-156.62970526,0.000149,2]
[330969087,1719975040004,-418.51126409,0.000149,2]
[330969088,1719975040014,-659.33829417,0.000149,2]
[330969089,1719975040024,-1612.4652385,0.000149,2]
[330969090,1719975040034,-164.91172843,0.0001499,2]
[330969091,1719975040043,-349.79504445,0.00014999,2]
[330969092,1719975040053,-500.0,0.00014999,2]
[330969093,1719975040062,-500.0,0.00014999,2]
[330969094,1719975040072,-500.0,0.00014999,2]
[330969095,1719975040082,-500.0,0.00014999,2]
[330969096,1719975040091,-500.0,0.00014999,2]
[330969097,1719975040101,-443.43820831,0.00014999,2]
[330969098,1719975040111,-500.0,0.00014999,2]
[330969099,1719975040121,-500.0,0.00014999,2]
[330969100,1719975040131,-540.79110319,0.00014999,2]
[330969101,1719975040140,-500.0,0.00014999,2]
[330969102,1719975040149,-500.0,0.00014999,2]
[330969103,1719975040158,-500.0,0.00014999,2]
[330969104,1719975040168,-500.0,0.00014999,2]
[330969105,1719975040177,-500.0,0.00014999,2]
[330969106,1719975040187,-500.0,0.00014999,2]
[330969107,1719975040196,-500.0,0.00014999,2]
[330969108,1719975040205,-403.6367402,0.00014999,2]
[330969109,1719975040214,-500.0,0.00014999,2]
[330969110,1719975040223,-500.0,0.00014999,2]
[330969111,1719975040232,-500.0,0.00014999,2]
[330969112,1719975040242,-500.0,0.00014999,2]
[330969113,1719975040251,-500.0,0.00014999,2]
[330969114,1719975040260,-500.0,0.00014999,2]
[330969115,1719975040271,-500.0,0.00014999,2]
[330969116,1719975040280,-200.00000001,0.00014999,2]
[330969117,1719975040289,-480.09453022,0.00014999,2]
[330969118,1719975040298,-500.0,0.00014999,2]
[330969119,1719975040308,-5013.60602684,0.00014999,2]
[330969120,1719975040317,-211621.78697522,0.00015,2]
[330969121,1719975041534,-1022.04087,0.00014807,2]
[330969123,1719975041546,-910.0,0.00014807,2]
[330969126,1719975041557,-1436.53891518,0.00014807,2]
[330969127,1719975041566,-12420.66241244,0.00015,2]
[330969128,1719975041578,-9613.92971346,0.00015,2]
[330969129,1719975041589,-25455.6596611,0.00015,2]
[330969130,1719975042851,-224.69944694,0.000149,2]
[330969131,1719975042861,-2882.42599885,0.00015,2]
[330969132,1719975042874,-514.90811892,0.00015,2]
[330969133,1719975042886,-4775.39450496,0.00015,2]
[330969134,1719975042898,-538.53344627,0.00015,2]
[330969135,1719975042911,-10454.55,0.00015,2]
[330969136,1719975042923,-4608.4,0.00015,2]
[330969137,1719975042934,-5994.27266588,0.00015,2]
[330969138,1719975042945,-775.77409809,0.00015,2]
[330969139,1719975042956,-1282.09530356,0.00015,2]
[330969140,1719975043417,-560.58454009,0.00015,2]
[330969143,1719975043428,-500.0,0.00015,2]
[330969144,1719975043439,-682.87598038,0.00015,2]
[330969146,1719975043450,-409.45999997,0.00015,2]
[330969149,1719975043462,-1176.02325959,0.00015,2]
[330969151,1719975043473,-4781.16113313,0.00015,2]
[330969153,1719975043484,-756.76374139,0.00015,2]
[330969155,1719975044149,-300.1,0.00015,2]
[330969156,1719975044162,-301.132,0.00015,2]
[330969157,1719975044173,-274.264,0.00015,2]
[330969158,1719975044185,-309.865,0.00015,2]
[330969159,1719975044197,-4687.47254364,0.00015,2]
[330969160,1719975044208,-1822.31939735,0.00015,2]
[330969161,1719975044220,-433938.53998831,0.00015,2]
[330969162,1719975044231,-5930.74783496,0.00015,2]
[330969163,1719975044243,-1086.99545133,0.00015,2]
[330969164,1719975044255,-501.77587846,0.00015,2]
[330969165,1719975044266,-384.04787661,0.00015,2]
[330969166,1719975044278,-36968.06209403,0.00015,2]
[330969167,1719975044289,-2160.88984424,0.00015,2]
[330969168,1719975044302,-776.01999628,0.00015,2]
[330969169,1719975044314,-828.90081964,0.00015,2]
[330969171,1719975047042,-329.27424369,0.0001372,2]
[330969172,1719975047055,-519.94092033,0.0001372,2]
[330969173,1719975047067,-203.88831607,0.0001372,2]
[330969174,1719975047077,-641.36168393,0.00014188,2]
[330969175,1719975047089,-929.49487417,0.00014188,2]
[330969176,1719975047100,-3491.25365204,0.00014188,2]
[330969177,1719975047110,-119.38829597,0.00015,2]
[330969178,1719975047121,-2085.163727,0.00015,2]
[330969179,1719975047133,-442.00189353,0.00015,2]
[330969180,1719975047145,-310.0765343,0.00015,2]
[330969181,1719975047156,-2490.15305556,0.00015,2]
[330969182,1719975047168,-845.475,0.00015,2]
[330969183,1719975047179,-3577.8,0.00015,2]
[330969184,1719975047191,-852.18109769,0.00015,2]
[330969185,1719975047205,-1050.24683318,0.00015,2]
[330969188,1719975309071,1261.38286634,0.00011199,2]
[330969189,1719975465255,547.73609908,0.00011199,2]
[330969190,1719975484819,164.43702872,0.00011199,2]
[330969191,1719975723526,1289.44083379,0.00011199,2]
[330969192,1719975817814,557.86,0.000114,2]
[330969193,1719975827860,8723.83546185,0.00011199,2]
[330969195,1719975979732,3153.1140478,0.00011199,2]
[330969196,1719976015581,4204.35067844,0.00011199,2]
[330969197,1719976087753,156.35117349,0.00011199,2]
[330969198,1719976096536,1286.90359013,0.00011199,2]
[330969218,1719976186294,162.77339649,0.00011199,2]
[330969241,1719976236393,-3000.0,0.0001249,2]
[330969242,1719976236403,-3000.0,0.0001261,2]
[330969243,1719976236412,-3000.0,0.0001276,2]
[330969244,1719976236421,-300.0,0.00012919,2]
[330969246,1719976236430,-1953.40175798,0.0001292,2]
[330969248,1719976236441,-854.8607206,0.0001292,2]
[330969251,1719976236452,-191.73752142,0.0001292,2]
[330969253,1719976236461,-1000.0,0.00012999,2]
[330969255,1719976236471,-250.0,0.00013013,2]
[330969257,1719976236480,-705.42,0.00013023,2]
[330969259,1719976236489,-220.0,0.00013045,2]
[330969261,1719976236501,-1051.15648195,0.00013046,2]
[330969263,1719976236512,-8108.30062772,0.00013046,2]
[330969265,1719976236522,-543.83019264,0.00013046,2]
[330969267,1719976236533,-538.93491087,0.00013046,2]
[330969269,1719976236545,-6413.40778682,0.00013046,2]
[330969270,1719976236554,-1085.60246974,0.0001308,2]
[330969271,1719976236565,-615.70671244,0.0001308,2]
[330969272,1719976236791,-1298.69081782,0.0001308,2]
[330969273,1719976236800,-196.74437875,0.00013151,2]
[330969274,1719976236809,-1119.33700949,0.0001323,2]
[330969285,1719976238525,-1880.66299051,0.0001323,2]
[330969287,1719976238535,-179.27,0.00013302,2]
[330969290,1719976238545,-483.74,0.00013307,2]
[330969293,1719976238555,-400.05,0.00013308,2]
[330969296,1719976238564,-499.99,0.00013308,2]
[330969300,1719976238574,-151.94,0.00013341,2]
[330969302,1719976238583,-483.74,0.00013344,2]
[330969306,1719976238593,-483.74,0.0001338,2]
[330969310,1719976238603,-483.74,0.00013417,2]
[330969314,1719976238612,-483.74,0.00013453,2]
[330969317,1719976238622,-396.55485672,0.00013472,2]
[330969319,1719976238632,-483.74,0.0001349,2]
[330969320,1719976238641,-483.74,0.00013526,2]
[330969321,1719976238651,-150.0,0.00013542,2]
[330969322,1719976238661,-159.53759203,0.00013543,2]
[330969323,1719976238670,-483.74,0.00013563,2]
[330969324,1719976238679,-177.51,0.00013569,2]
[330969325,1719976238689,-4.79383531,0.00013599,2]
[330969326,1719976238701,-478.94616469,0.00013599,2]
[330969327,1719976238711,-483.74,0.00013636,2]
[330969328,1719976238731,-557.86,0.00013664,2]
[330969329,1719976238742,-483.74,0.00013672,2]
[330969330,1719976238754,-689.02887103,0.00013699,2]
[330969331,1719976238768,-2061.97112897,0.00013699,2]
[330969332,1719976238778,-316.53,0.00013699,2]
[330969333,1719976238787,-709.72,0.00013699,2]
[330969334,1719976238797,-1597.76174695,0.00013699,2]
[330969335,1719976238808,-1367.00825305,0.00013699,2]
[330969336,1719976238818,-500.0,0.00013699,2]
[330969337,1719976238828,-483.74,0.00013709,2]
[330969338,1719976238837,-483.74,0.00013745,2]
[330969339,1719976238847,-483.74,0.00013782,2]
[330969340,1719976238856,-314.01954344,0.00013818,2]
[330969343,1719976239164,-169.72045656,0.00013818,2]
[330969344,1719976239174,-483.74,0.00013855,2]
[330969345,1719976239184,-483.74,0.00013891,2]
[330969346,1719976239195,-483.74,0.00013928,2]
[330969347,1719976239209,-594.33,0.00013928,2]
[330969348,1719976239219,-594.33,0.00013932,2]
[330969349,1719976239231,-594.33,0.00013935,2]
[330969350,1719976239245,-594.33,0.00013939,2]
[330969351,1719976239255,-594.33,0.00013943,2]
[330969352,1719976239265,-594.33,0.00013946,2]
[330969353,1719976239275,-594.33,0.0001395,2]
[330969354,1719976239286,-594.33,0.00013954,2]
[330969355,1719976239296,-594.33,0.00013957,2]
[330969356,1719976239307,-594.33,0.00013961,2]
[330969357,1719976239317,-483.74,0.00013964,2]
[330969358,1719976239328,-594.33,0.00013965,2]
[330969359,1719976239340,-594.33,0.00013968,2]
[330969360,1719976239350,-594.33,0.00013972,2]
[330969361,1719976239361,-2000.0,0.00013973,3]
[330969362,1719976239371,-594.33,0.00013976,2]
[330969363,1719976239381,-594.33,0.00013979,2]
[330969364,1719976239392,-594.33,0.00013983,2]
[330969365,1719976239401,-594.33,0.00013987,2]
[330969366,1719976239412,-594.33,0.0001399,2]
[330969367,1719976239423,-594.33,0.00013994,2]
[330969368,1719976239432,-1017.63174973,0.00013997,2]
[330969369,1719976239443,-594.33,0.00013998,2]
[330969370,1719976239454,-1903.22472733,0.00013999,2]
[330969371,1719976239464,-1341.73620512,0.00013999,2]
[330969372,1719976239474,-483.74,0.00014001,2]
[330969373,1719976239484,-420.0,0.00014169,2]
[330969374,1719976239496,-316.53,0.00014384,2]
[330969375,1719976239505,-613.214784,0.00014521,2]
[330969376,1719976239516,-390.09168632,0.0001459,2]
[330969377,1719976239526,-1000.0,0.00014624,2]
[330969378,1719976239537,-240.0,0.00014801,2]
[330969379,1719976239547,-430.66592486,0.00014849,2]
[330969380,1719976239557,-7545.78717899,0.000149,2]
[330969381,1719976239571,-1002.3569137,0.000149,2]
[330969382,1719976239583,-9991.0,0.000149,2]
[330969383,1719976239595,-10012.95742688,0.000149,2]
[330969384,1719976239605,-143.91987768,0.000149,2]
[330969385,1719976239618,-284.51111494,0.000149,2]
[330969386,1719976239756,-842.8730136,0.000149,2]
[330969387,1719976239769,-257.82237684,0.000149,2]
[330969388,1719976239781,-902.795953,0.000149,2]
[330969389,1719976239794,-795.2682055,0.000149,2]
[330969390,1719976239806,-1007.38297438,0.000149,2]
[330969391,1719976239819,-155.51798406,0.000149,2]
[330969392,1719976239829,-189.3104724,0.000149,2]
[330969393,1719976239839,-174.39644681,0.000149,2]
[330969394,1719976239849,-156.62970523,0.000149,2]
[330969395,1719976239858,-157.44470744,0.000149,2]
[330969396,1719976239869,-12.27551003,0.000149,2]
[330969397,1719976239881,-196.98012202,0.000149,2]
[330969398,1719976239891,-315.7876345,0.000149,2]
[330969399,1719976239900,-2712.83039673,0.000149,2]
[330969400,1719976239910,-220.36,0.00014904,3]
[330969401,1719976239920,-500.0,0.00014999,2]
[330969402,1719976239930,-309.14820459,0.00014999,2]
[330969403,1719976239940,-40744.37342282,0.00015,2]
[330969404,1719976239952,-3486.1,0.00015,2]
[330969405,1719976239963,-12266.21967178,0.00015,2]
[330969406,1719976239975,-902.15263318,0.00015,2]
[330969417,1719976242639,-1566298.75493284,0.00015,2]
[330969418,1719976242650,-155217.15754899,0.00015,2]
[330969419,1719976242660,-24641.18328434,0.00015,2]
[330969420,1719976242669,-169.74477464,0.00015,2]
[330969421,1719976242679,-2000.0,0.00015,2]
[330969422,1719976242688,-200.0,0.00015,2]
[330969423,1719976242697,-5000.0,0.00015,2]
[330969424,1719976242706,-200.0,0.00015,2]
[330969425,1719976242716,-1657.99253549,0.00015,2]
[330969426,1719976242725,-151.94,0.00015009,2]
[330969427,1719976242735,-500.0,0.00015067,2]
[330969428,1719976242744,-500.0,0.00015067,2]
[330969429,1719976242753,-500.0,0.00015067,2]
[330969430,1719976242764,-500.0,0.00015067,2]
[330969431,1719976242774,-316.53,0.00015068,2]
[330969432,1719976242784,-2000.0,0.0001515,2]
[330969433,1719976242794,-200.0,0.0001515,2]
[330969434,1719976242804,-200.0,0.0001515,2]
[330969435,1719976242814,-300.0,0.00015298,2]
[330969436,1719976242824,-2000.0,0.00015301,2]
[330969437,1719976242833,-200.0,0.00015301,2]
[330969438,1719976242843,-200.0,0.00015301,2]
[330969439,1719976242852,-613.214784,0.00015342,2]
[330969440,1719976242862,-169.46,0.00015371,2]
[330969441,1719976242871,-1231.16470023,0.00015399,2]
[330969442,1719976242881,-2000.0,0.00015455,2]
[330969443,1719976242891,-200.0,0.00015455,2]
[330969444,1719976242901,-200.0,0.00015455,2]
[330969445,1719976242914,-587.0,0.0001554,2]
[330969446,1719976242924,-2000.0,0.00015609,2]
[330969447,1719976242934,-200.0,0.00015609,2]
[330969448,1719976242943,-200.0,0.00015609,2]
[330969449,1719976242953,-28552.10151955,0.00015626,2]
[330969450,1719976242962,-2712.83039665,0.00015689,2]
[330969451,1719976242972,-315.78763447,0.00015699,2]
[330969452,1719976242981,-316.53,0.00015753,2]
[330969453,1719976242991,-167.0,0.00015831,2]
[330969454,1719976243005,-708.98056998,0.00015888,2]
[330969455,1719976243015,-309.88,0.0001589,4]
[330969456,1719976243024,-557.86,0.00015928,2]
[330969457,1719976243034,-189.31047238,0.00016083,2]
[330969458,1719976243043,-9999.99,0.00016116,2]
[330969459,1719976243053,-178.15,0.00016138,2]
[330969460,1719976243063,-613.214784,0.00016164,2]
[330969461,1719976243072,-155.0,0.00016172,2]
[330969462,1719976243081,-1085.86866109,0.00016172,2]
[330969463,1719976243091,-384.0,0.00016183,2]
[330969464,1719976243100,-1000.0,0.00016248,2]
[330969465,1719976243109,-1073.28164816,0.00016315,2]
[330969466,1719976243120,-28552.10151955,0.00016353,2]
[330969467,1719976243132,-167.0,0.00016354,2]
[330969468,1719976243143,-316.53,0.00016438,2]
[330969469,1719976243154,-705.66,0.00016438,2]
[330969470,1719976243165,-151.59,0.00016439,2]
[330969471,1719976243175,-2712.83039665,0.00016478,2]
[330969472,1719976243186,-315.78763447,0.00016498,2]
[330969473,1719976243197,-1759.69864808,0.00016566,2]
[330969474,1719976243212,-300.0,0.00016668,2]
[330969475,1719976243221,-156.62970523,0.00016675,2]
[330969476,1719976243232,-151.94,0.00016677,2]
[330969477,1719976243244,-1495.11925743,0.00016699,2]
[330969478,1719976243255,-1495.11925743,0.00016699,2]
[330969480,1719976243265,-500.0,0.00016711,2]
[330969481,1719976243274,-605.71941719,0.00016711,2]
[330969483,1719976243285,-503.90868242,0.00016711,2]
[330969485,1719976243295,-500.0,0.00016711,2]
[330969487,1719976243304,-162.63,0.00016712,2]
[330969490,1719976243314,-167.0,0.00016876,2]
[330969493,1719976243324,-708.98056998,0.00016876,2]
[330969494,1719976243333,-613.214784,0.00016986,2]
[330969495,1719976243348,-823.0,0.00017044,2]
[330969496,1719976243358,-28552.10151955,0.00017079,2]
[330969497,1719976243368,-307.99289133,0.00017159,2]
[330969498,1719976243379,-155.15073946,0.00017159,2]
[330969499,1719976243389,-417.72214986,0.00017199,2]
[330969500,1719976243398,-297.70719904,0.00017199,2]
[330969501,1719976243407,-155.65396603,0.00017253,2]
[330969502,1719976243417,-623.01916795,0.00017257,2]
[330969503,1719976243427,-474.74245113,0.00017257,2]
[330969504,1719976243436,-155.0,0.00017259,2]
[330969505,1719976243447,-158.59051529,0.00017259,2]
[330969506,1719976243456,-155.16470591,0.00017259,2]
[330969507,1719976243466,-266.36569175,0.00017259,2]
[330969508,1719976243476,-189.31047238,0.00017267,2]
[330969509,1719976243485,-2712.83039665,0.00017267,2]
[330969510,1719976243496,-315.78763447,0.00017297,2]
[330969511,1719976243507,-167.0,0.00017399,2]
[330969512,1719976243516,-258.17343064,0.00017444,2]
[330969513,1719976243526,-280.89880207,0.00017444,2]
[330969514,1719976243538,-155.0,0.00017444,2]
[330969515,1719976243547,-156.97217318,0.00017444,2]
[330969516,1719976243559,-155.0,0.00017444,2]
[330969517,1719976243568,-10000.0,0.00017493,2]
[330969518,1719976243578,-151.0,0.00017503,2]
[330969519,1719976243587,-366.65876706,0.00017533,2]
[330969520,1719976243598,-155.0,0.00017566,2]
[330969521,1719976243608,-155.0,0.00017566,2]
[330969522,1719976243617,-328.82033738,0.00017599,2]
[330969523,1719976243627,-328.82033738,0.00017599,2]
[330969524,1719976243637,-5203.057,0.00017616,2]
[330969525,1719976243646,-38228.0,0.00017616,2]
[330969526,1719976243656,-1198.0,0.00017616,2]
[330969527,1719976243666,-1670.657,0.00017616,2]
[330969528,1719976243676,-5833.042,0.00017616,2]
[330969530,1719976243686,-292.106,0.00017616,2]
[330969532,1719976243696,-945.296,0.00017616,2]
[330969534,1719976243706,-614.0,0.00017686,2]
[330969536,1719976243715,-526.43862927,0.00017703,2]
[330969538,1719976243725,-28552.10151955,0.00017805,2]
[330969539,1719976243735,-500.0,0.00017807,2]
[330969541,1719976243744,-500.0,0.00017807,2]
[330969543,1719976243755,-613.214784,0.00017808,2]
[330969545,1719976243764,-151.0,0.00017846,2]
[330969547,1719976243774,-708.98056998,0.00017864,2]
[330969549,1719976243784,-1000.0,0.00017873,2]
[330969550,1719976243793,-150.118,0.00017876,2]
[330969552,1719976243803,-360.0,0.00017876,2]
[330969554,1719976243812,-1275.0,0.00017876,2]
[330969556,1719976243821,-1670.893,0.00017876,2]
[330969558,1719976243831,-1830.0,0.00017876,2]
[330969560,1719976243840,-443.0,0.00017876,2]
[330969562,1719976243849,-449.0,0.00017876,2]
[330969564,1719976243859,-815.779,0.00017876,2]
[330969566,1719976243868,-166.0,0.00017876,2]
[330969568,1719976243878,-618.0,0.00017876,2]
[330969569,1719976243888,-2429.802,0.00017876,2]
[330969570,1719976243897,-1304.0,0.00017876,2]
[330969571,1719976243906,-151.504,0.00017876,2]
[330969572,1719976243916,-283.0,0.00017876,2]
[330969573,1719976243926,-1987.0,0.00017876,2]
[330969574,1719976243936,-569.608,0.00017876,2]
[330969575,1719976243946,-3206.0,0.00017876,2]
[330969576,1719976243956,-227.12084219,0.00017889,2]
[330969577,1719976243966,-167.0,0.00017921,2]
[330969578,1719976243976,-178.15,0.00017932,2]
[330969579,1719976243986,-155.71962169,0.00018,2]
[330969580,1719976243996,-370.64324093,0.00018,2]
[330969581,1719976244010,-2712.83039665,0.00018056,2]
[330969582,1719976244019,-315.78763447,0.00018096,2]
[330969583,1719976244029,-151.0,0.00018189,2]
[330969584,1719976244039,-557.86,0.00018191,2]
[330969585,1719976244049,-241.35370127,0.00018284,2]
[330969586,1719976244059,-151.94,0.00018344,2]
[330969587,1719976244068,-167.0,0.00018444,2]
[330969588,1719976244078,-189.31047238,0.0001845,2]
[330969589,1719976244088,-156.62970523,0.0001845,2]
[330969590,1719976244098,-152.97159455,0.00018525,2]
[330969591,1719976244108,-28552.10151955,0.00018532,2]
[330969592,1719976244118,-151.0,0.00018532,2]
[330969593,1719976244128,-152.97159455,0.00018548,2]
[330969594,1719976244139,-1309.96512712,0.00018561,2]
[330969595,1719976244149,-1309.96512712,0.00018562,2]
[330969596,1719976244159,-155.04468759,0.00018569,2]
[330969597,1719976244169,-1386.77048409,0.0001857,2]
[330969598,1719976244179,-151.0669482,0.00018573,2]
[330969599,1719976244188,-189.67498527,0.00018582,2]
[330969600,1719976244199,-150.0,0.00018592,2]
[330969601,1719976244210,-151.0669482,0.00018615,2]
[330969602,1719976244222,-221.25810012,0.00018621,2]
[330969603,1719976244232,-613.214784,0.0001863,2]
[330969604,1719976244241,-152.97159455,0.00018637,2]
[330969605,1719976244254,-150.0,0.00018651,2]
[330969606,1719976244264,-152.26339483,0.00018667,2]
[330969607,1719976244273,-259.26373327,0.00018668,2]
[330969608,1719976244283,-259.26373327,0.00018672,2]
[330969609,1719976244568,-189.67498527,0.00018687,2]
[330969610,1719976244579,-1152.0,0.00018693,2]
[330969611,1719976244588,-500.38250462,0.00018694,2]
[330969612,1719976244598,-500.38250462,0.00018701,2]
[330969613,1719976244608,-150.0,0.0001871,2]
[330969614,1719976244618,-189.67498527,0.00018727,2]
[330969615,1719976244627,-152.26339483,0.00018729,2]
[330969616,1719976244637,-283.5472581,0.00018738,2]
[330969617,1719976244646,-154.41149919,0.00018755,2]
[330969618,1719976244655,-150.0,0.00018769,2]
[330969619,1719976244665,-221.25810012,0.00018786,2]
[330969620,1719976244675,-152.97159455,0.00018794,2]
[330969621,1719976244685,-152.26339483,0.00018797,2]
[330969622,1719976244694,-283.5472581,0.00018805,2]
[330969623,1719976244704,-150.0,0.00018828,2]
[330969624,1719976244713,-2712.83039665,0.00018844,2]
[330969625,1719976244723,-162.95,0.00018849,30]
[330969626,1719976244732,-708.98056998,0.00018853,2]
[330969627,1719976244741,-283.5472581,0.0001887,2]
[330969628,1719976244751,-154.8189548,0.00018874,2]
[330969629,1719976244762,-151.0,0.00018875,2]
[330969630,1719976244772,-189.67498527,0.00018878,2]
[330969631,1719976244781,-259.26373327,0.0001888,2]
[330969632,1719976244791,-150.0,0.00018887,2]
[330969633,1719976244800,-315.78763447,0.00018895,2]
[330969634,1719976244809,-391.78,0.000189,2]
[330969635,1719976244818,-391.78,0.000189,2]
[330969636,1719976244827,-391.78,0.000189,2]
[330969637,1719976244835,-391.78,0.000189,2]
[330969638,1719976244845,-391.78,0.000189,2]
[330969639,1719976244854,-391.78,0.000189,2]
[330969640,1719976244863,-391.78,0.000189,2]
[330969641,1719976244872,-391.78,0.000189,2]
[330969642,1719976244881,-391.78,0.000189,2]
[330969643,1719976244890,-391.78,0.000189,2]
[330969644,1719976244900,-391.78,0.000189,2]
[330969645,1719976244909,-391.78,0.000189,2]
[330969646,1719976244919,-391.78,0.000189,2]
[330969647,1719976244929,-391.78,0.000189,2]
[330969648,1719976244939,-391.78,0.000189,2]
[330969649,1719976244948,-391.78,0.000189,2]
[330969650,1719976244958,-391.78,0.000189,2]
[330969651,1719976244967,-391.78,0.000189,2]
[330969652,1719976244978,-391.78,0.000189,2]
[330969653,1719976244988,-391.78,0.000189,2]
[330969654,1719976244997,-391.78,0.000189,2]
[330969655,1719976245009,-391.78,0.000189,2]
[330969656,1719976245019,-391.78,0.000189,2]
[330969657,1719976245031,-11526.07754917,0.000189,2]
[330969658,1719976245041,-500.0,0.00018903,2]
[330969659,1719976245050,-500.38250462,0.00018903,2]
[330969660,1719976245059,-189.67498527,0.00018915,2]
[330969661,1719976245069,-1309.96512712,0.00018942,2]
[330969662,1719976245078,-150.0,0.00018946,2]
[330969663,1719976245088,-587.40649634,0.00018954,2]
[330969664,1719976245098,-259.26373327,0.00018975,2]
[330969665,1719976245108,-154.87527333,0.00018976,2]
[330969666,1719976245117,-166.66666666,0.00018985,2]
[330969667,1719976245127,-500.38250462,0.00018988,2]
[330969668,1719976245137,-155.22842668,0.00019,2]
[330969669,1719976245146,-155.80362228,0.00019,2]
[330969670,1719976245156,-156.34172633,0.00019,2]
[330969671,1719976245165,-150.0,0.00019005,2]
[330969672,1719976245175,-156.44755965,0.00019024,2]
[330969673,1719976245184,-152.97159455,0.00019037,2]
[330969674,1719976245194,-152.97159455,0.00019038,2]
[330969675,1719976245208,-170.9758157,0.00019052,2]
[330969676,1719976245218,-1309.96512712,0.00019056,2]
[330969677,1719976245227,-150.0,0.00019064,2]
[330969678,1719976245236,-441.67948783,0.00019077,2]
[330969679,1719976245246,-1386.77048409,0.00019099,2]
[330969680,1719976245260,-169.36249993,0.00019117,2]
[330969681,1719976245271,-500.38250462,0.00019117,2]
[330969682,1719976245281,-150.0,0.00019123,2]
[330969683,1719976245290,-500.38250462,0.00019123,2]
[330969684,1719976245301,-283.5472581,0.00019135,2]
[330969685,1719976245311,-154.8189548,0.00019167,2]
[330969686,1719976245320,-391.78,0.00019168,2]
[330969687,1719976245330,-391.78,0.00019168,2]
[330969688,1719976245340,-2000.0,0.00019178,2]
[330969689,1719976245352,-3213.0,0.00019178,2]
[330969690,1719976245364,-3282.0,0.00019178,2]
[330969691,1719976245375,-200.0,0.00019178,2]
[330969692,1719976245385,-200.0,0.00019178,2]
[330969693,1719976245396,-200.0,0.00019178,2]
[330969694,1719976245406,-200.0,0.00019178,2]
[330969695,1719976245416,-200.0,0.00019178,2]
[330969696,1719976245426,-709.72,0.00019178,2]
[330969697,1719976245436,-3155.16,0.00019178,2]
[330969698,1719976245446,-250.0,0.00019178,2]
[330969699,1719976245456,-22617.31,0.00019178,2]
[330969700,1719976245466,-54740.71,0.00019178,2]
[330969701,1719976245475,-150.0,0.00019182,4]
[330969702,1719976245485,-154.41149919,0.00019183,2]
[330969703,1719976245495,-221.25810012,0.00019193,2]
[330969704,1719976245511,-587.40649634,0.00019208,2]
[330969705,1719976245522,-587.40649634,0.00019213,2]
[330969706,1719976245532,-151.0,0.00019218,2]
[330969707,1719976245542,-154.01077245,0.00019229,2]
[330969708,1719976245552,-150.0,0.00019241,4]
[330969709,1719976245561,-155.04468759,0.00019258,2]
[330969710,1719976245573,-28552.10151955,0.00019258,2]
[330969711,1719976245583,-155.86954729,0.0001926,2]
[330969712,1719976245593,-283.5472581,0.00019263,2]
[330969713,1719976245603,-150.0,0.000193,4]
[330969714,1719976245612,-155.86954729,0.00019302,2]
[330969715,1719976245622,-1386.77048409,0.00019303,2]
[330969716,1719976245632,-221.25810012,0.00019323,2]
[330969717,1719976245642,-983.0,0.00019324,2]
[330969718,1719976245651,-152.26339483,0.00019347,2]
[330969719,1719976245660,-334.89192372,0.00019352,2]
[330969720,1719976245670,-295.27845213,0.00019352,2]
[330969721,1719976245679,-150.0,0.00019359,4]
[330969722,1719976245689,-166.66666667,0.00019366,2]
[330969723,1719976245698,-587.40649634,0.00019383,2]
[330969724,1719976245708,-152.68616389,0.00019389,2]